fUSD/lending_fUSD_20240424
["ID","MTS","AMOUNT","RATE_DAILY","PERIOD"]
[323395898,1713970251546,-571.31,0.00011506,2]
[323395899,1713970251557,-500.0,0.00011506,2]
[323395900,1713970251569,-500.0,0.00011506,2]
[323395901,1713970251581,-774.8,0.00011506,2]
[323395902,1713970251592,-500.0,0.00011506,2]
[323395903,1713970251602,-1067.92,0.00011506,2]
[323395904,1713970251612,-500.0,0.00011506,2]
[323395905,1713970251623,-500.0,0.00011506,2]
[323395906,1713970251633,-500.0,0.00011506,2]
[323395907,1713970251645,-500.0,0.00011506,2]
[323395908,1713970251656,-572.63,0.00011506,2]
[323395909,1713970251668,-500.0,0.00011506,2]
[323395910,1713970251678,-336.98,0.00011506,2]
[323395911,1713970251689,-500.0,0.00011506,2]
[323395912,1713970251699,-500.0,0.00011506,2]
[323395913,1713970251709,-1470.58,0.00011506,2]
[323395914,1713970251721,-573.48,0.00011506,2]
[323395915,1713970251732,-500.0,0.00011506,2]
[323395916,1713970251744,-500.0,0.00011506,2]
[323395917,1713970251755,-500.0,0.00011506,2]
[323395918,1713970251767,-500.0,0.00011506,2]
[323395919,1713970251778,-500.0,0.00011506,2]
[323395920,1713970251789,-500.0,0.00011506,2]
[323395921,1713970251802,-1445.39,0.00011506,2]
[323395922,1713970251814,-500.0,0.00011506,2]
[323395923,1713970251828,-882.27,0.00011506,2]
[323395924,1713970251839,-500.0,0.00011506,2]
[323395925,1713970251849,-613.15,0.00011506,2]
[323395926,1713970251859,-500.0,0.00011506,2]
[323395927,1713970251869,-500.0,0.00011506,2]
[323395928,1713970251880,-500.0,0.00011506,2]
[323395929,1713970251889,-500.0,0.00011506,2]
[323395930,1713970251899,-500.0,0.00011506,2]
[323395931,1713970251910,-2307.06,0.00011506,2]
[323395932,1713970251921,-500.0,0.00011506,2]
[323395933,1713970251932,-500.0,0.00011506,2]
[323395934,1713970251942,-469.84,0.00011506,2]
[323395935,1713970251952,-500.0,0.00011506,2]
[323395936,1713970251964,-500.0,0.00011506,2]
[323395937,1713970251974,-525.5,0.00011506,2]
[323395938,1713970251986,-3243.17,0.00011506,2]
[323395939,1713970251996,-500.0,0.00011506,2]
[323395940,1713970252006,-500.0,0.00011506,2]
[323395941,1713970252015,-862.54,0.00011506,2]
[323395942,1713970252025,-500.0,0.00011506,2]
[323395943,1713970252035,-500.0,0.00011506,2]
[323395944,1713970252047,-529.52,0.00011506,2]
[323395945,1713970252058,-1387.82,0.00011506,2]
[323395946,1713970252069,-500.0,0.00011506,2]
[323395947,1713970252082,-500.0,0.00011506,2]
[323395948,1713970252095,-2543.4,0.00011506,2]
[323395949,1713970252105,-500.0,0.00011506,2]
[323395950,1713970252115,-500.0,0.00011506,2]
[323395951,1713970252403,-500.0,0.00011506,2]
[323395952,1713970252413,-500.0,0.00011506,2]
[323395953,1713970252422,-500.0,0.00011506,2]
[323395954,1713970252432,-500.0,0.00011506,2]
[323395955,1713970252441,-500.0,0.00011506,2]
[323395956,1713970252451,-500.0,0.00011506,2]
[323395957,1713970252460,-1262.43,0.00011506,2]
[323395958,1713970252470,-500.0,0.00011506,2]
[323395959,1713970252479,-500.0,0.00011506,2]
[323395960,1713970252489,-500.0,0.00011506,2]
[323395961,1713970252499,-500.0,0.00011506,2]
[323395962,1713970252509,-500.0,0.00011506,2]
[323395963,1713970252519,-1315.73,0.00011506,2]
[323395964,1713970252529,-241.52,0.00011506,2]
[323395965,1713970252538,-1316.64,0.00011506,2]
[323395966,1713970252547,-500.0,0.00011506,2]
[323395967,1713970252557,-500.0,0.00011506,2]
[323395968,1713970252566,-3129.25,0.00011506,2]
[323395969,1713970252576,-2816.44,0.00011506,2]
[323395970,1713970252590,-600.14,0.00011506,2]
[323395971,1713970252600,-593.38,0.00011506,2]
[323395972,1713970252609,-500.0,0.00011506,2]
[323395973,1713970252618,-500.0,0.00011506,2]
[323395974,1713970252628,-4905.31,0.00011506,2]
[323395975,1713970252638,-500.0,0.00011506,2]
[323395976,1713970252648,-1194.12,0.00011506,2]
[323395977,1713970252657,-500.0,0.00011506,2]
[323395978,1713970252667,-287.76,0.00011506,2]
[323395979,1713970252676,-500.0,0.00011506,2]
[323395980,1713970252685,-500.0,0.00011506,2]
[323395981,1713970252695,-247.74,0.00011506,2]
[323395982,1713970252705,-1391.7,0.00011506,2]
[323395983,1713970252714,-500.0,0.00011506,2]
[323395984,1713970252724,-242.42,0.00011506,2]
[323395985,1713970252733,-500.0,0.00011506,2]
[323395986,1713970252743,-531.02,0.00011506,2]
[323395987,1713970252753,-502.76212884,0.00011506,2]
[323395988,1713970252762,-1013.54,0.00011506,2]
[323395989,1713970252772,-500.0,0.00011506,2]
[323395990,1713970252781,-1394.49,0.00011506,2]
[323395991,1713970252790,-500.0,0.00011506,2]
[323395992,1713970252800,-1365.03,0.00011506,2]
[323395993,1713970252809,-500.0,0.00011506,2]
[323395994,1713970252819,-1916.7,0.00011506,2]
[323395995,1713970252831,-500.0,0.00011506,2]
[323395996,1713970252841,-3078.47,0.00011506,2]
[323395997,1713970252850,-500.0,0.00011506,2]
[323395998,1713970252860,-899.94,0.00011506,2]
[323395999,1713970252869,-562.8,0.00011506,2]
[323396000,1713970252879,-730.52,0.00011506,2]
[323396001,1713970252888,-555.42,0.00011506,2]
[323396002,1713970252897,-2615.62,0.00011506,2]
[323396003,1713970252907,-500.0,0.00011506,2]
[323396004,1713970252916,-500.0,0.00011506,2]
[323396005,1713970252926,-1361.48,0.00011506,2]
[323396006,1713970252935,-500.0,0.00011506,2]
[323396007,1713970252944,-2640.73,0.00011506,2]
[323396008,1713970252954,-500.0,0.00011506,2]
[323396009,1713970252965,-697.36,0.00011506,2]
[323396010,1713970252975,-500.0,0.00011506,2]
[323396011,1713970252985,-229.26,0.00011506,2]
[323396012,1713970252994,-990.86,0.00011506,2]
[323396013,1713970253003,-500.0,0.00011506,2]
[323396014,1713970253014,-2764.19,0.00011506,2]
[323396015,1713970253024,-500.0,0.00011506,2]
[323396016,1713970253033,-500.0,0.00011506,2]
[323396017,1713970253042,-500.0,0.00011506,2]
[323396018,1713970253052,-425.2,0.00011506,2]
[323396019,1713970253061,-501.24726959,0.00011506,2]
[323396020,1713970253070,-500.0,0.00011506,2]
[323396021,1713970253084,-783.72,0.00011506,2]
[323396022,1713970253093,-3152.44,0.00011506,2]
[323396023,1713970253102,-407.62,0.00011506,2]
[323396024,1713970253111,-291.72,0.00011506,2]
[323396025,1713970253120,-7011.83,0.00011506,2]
[323396026,1713970253129,-2022.73,0.00011506,2]
[323396027,1713970253138,-737.94,0.00011506,2]
[323396028,1713970253147,-216.91,0.00011506,2]
[323396029,1713970253156,-500.0,0.00011506,2]
[323396030,1713970253165,-500.0,0.00011506,2]
[323396031,1713970253175,-1113.65,0.00011506,2]
[323396032,1713970253184,-1823.7,0.00011506,2]
[323396033,1713970253194,-500.0,0.00011506,2]
[323396034,1713970253203,-1402.62,0.00011506,2]
[323396035,1713970253212,-1197.08,0.00011506,2]
[323396036,1713970253222,-500.0,0.00011506,2]
[323396037,1713970253231,-500.0,0.00011506,2]
[323396038,1713970253240,-548.2,0.00011506,2]
[323396039,1713970253249,-500.0,0.00011506,2]
[323396040,1713970253258,-4348.51,0.00011506,2]
[323396041,1713970253268,-2636.17,0.00011506,2]
[323396042,1713970253277,-537.14,0.00011506,2]
[323396043,1713970253287,-3223.85,0.00011506,2]
[323396044,1713970253296,-500.0,0.00011506,2]
[323396045,1713970253306,-4228.42,0.00011506,2]
[323396046,1713970253315,-1504.36,0.00011506,2]
[323396047,1713970253325,-500.0,0.00011506,2]
[323396048,1713970253337,-5620.65,0.00011506,2]
[323396049,1713970253347,-500.0,0.00011506,2]
[323396050,1713970253356,-500.0,0.00011506,2]
[323396051,1713970253366,-1363.17,0.00011506,2]
[323396052,1713970253376,-5224.62,0.00011506,2]
[323396053,1713970253386,-625.96,0.00011506,2]
[323396054,1713970253395,-4374.11,0.00011506,2]
[323396055,1713970253405,-2835.94,0.00011506,2]
[323396056,1713970253414,-5763.87,0.00011506,2]
[323396057,1713970253424,-1465.53,0.00011506,2]
[323396058,1713970253433,-500.0,0.00011506,2]
[323396059,1713970253443,-288.06,0.00011506,2]
[323396060,1713970253454,-6108.9,0.00011506,2]
[323396061,1713970253463,-6784.59,0.00011506,2]
[323396062,1713970253472,-500.0,0.00011506,2]
[323396063,1713970253482,-12609.06,0.00011506,2]
[323396064,1713970253491,-1491.28,0.00011506,2]
[323396065,1713970253500,-500.0,0.00011506,2]
[323396066,1713970253509,-500.0,0.00011506,2]
[323396067,1713970253519,-500.0,0.00011506,2]
[323396068,1713970253529,-614.86,0.00011506,2]
[323396069,1713970253540,-2609.42,0.00011506,2]
[323396070,1713970253549,-2707.94,0.00011506,2]
[323396071,1713970253559,-500.0,0.00011506,2]
[323396072,1713970253569,-4823.53,0.00011506,2]
[323396073,1713970253583,-11410.81,0.00011506,2]
[323396074,1713970253592,-7407.43,0.00011506,2]
[323396075,1713970253602,-4185.39,0.00011506,2]
[323396076,1713970253612,-500.0,0.00011506,2]
[323396077,1713970253622,-514.94,0.00011506,2]
[323396078,1713970253631,-1025.03,0.00011506,2]
[323396079,1713970253640,-1176.77,0.00011506,2]
[323396080,1713970253650,-5110.77,0.00011506,2]
[323396081,1713970253659,-531.57,0.00011506,2]
[323396082,1713970253668,-500.0,0.00011506,2]
[323396083,1713970253678,-2949.43,0.00011506,2]
[323396084,1713970253687,-4511.82,0.00011506,2]
[323396085,1713970253696,-500.0,0.00011506,2]
[323396086,1713970253705,-500.0,0.00011506,2]
[323396087,1713970253715,-4121.9,0.00011506,2]
[323396088,1713970253724,-356.72,0.00011506,2]
[323396089,1713970253734,-500.0,0.00011506,2]
[323396090,1713970253743,-14978.16,0.00011506,2]
[323396091,1713970253753,-6957.98,0.00011506,2]
[323396092,1713970253762,-500.0,0.00011506,2]
[323396093,1713970253773,-500.0,0.00011506,2]
[323396094,1713970253783,-500.0,0.00011506,2]
[323396095,1713970253793,-500.0,0.00011506,2]
[323396096,1713970253804,-500.0,0.00011506,2]
[323396097,1713970253814,-500.0,0.00011506,2]
[323396098,1713970253824,-9490.19,0.00011506,2]
[323396099,1713970253837,-7528.94,0.00011506,2]
[323396100,1713970253846,-4359.94,0.00011506,2]
[323396101,1713970253856,-500.0,0.00011506,2]
[323396102,1713970253865,-500.0,0.00011506,2]
[323396103,1713970253874,-500.0,0.00011506,2]
[323396104,1713970253884,-500.0,0.00011506,2]
[323396105,1713970253895,-2968.93,0.00011506,2]
[323396106,1713970253905,-500.0,0.00011506,2]
[323396107,1713970253915,-4584.73,0.00011506,2]
[323396108,1713970253925,-500.0,0.00011506,2]
[323396109,1713970253935,-11022.37,0.00011506,2]
[323396110,1713970253944,-500.0,0.00011506,2]
[323396111,1713970253954,-500.0,0.00011506,2]
[323396112,1713970253967,-500.0,0.00011506,2]
[323396113,1713970253977,-4779.27,0.00011506,2]
[323396114,1713970253986,-500.0,0.00011506,2]
[323396115,1713970253995,-1135.13,0.00011506,2]
[323396116,1713970254005,-500.0,0.00011506,2]
[323396117,1713970254015,-3711.59,0.00011506,2]
[323396118,1713970254023,-500.0,0.00011506,2]
[323396119,1713970254033,-1109.42,0.00011506,2]
[323396120,1713970254042,-500.0,0.00011506,2]
[323396121,1713970254052,-500.0,0.00011506,2]
[323396122,1713970254061,-675.38,0.00011506,2]
[323396123,1713970254070,-500.0,0.00011506,2]
[323396124,1713970254080,-500.0,0.00011506,2]
[323396125,1713970254089,-3747.04,0.00011506,2]
[323396126,1713970254098,-500.0,0.00011506,2]
[323396127,1713970254108,-500.0,0.00011506,2]
[323396128,1713970254117,-500.0,0.00011506,2]
[323396129,1713970254126,-500.0,0.00011506,2]
[323396130,1713970254135,-500.0,0.00011506,2]
[323396131,1713970254144,-8818.15,0.00011506,2]
[323396132,1713970254153,-500.0,0.00011506,2]
[323396133,1713970254162,-500.0,0.00011506,2]
[323396134,1713970254172,-500.0,0.00011506,2]
[323396135,1713970254181,-500.0,0.00011506,2]
[323396136,1713970254191,-645.8,0.00011506,2]
[323396137,1713970254200,-500.0,0.00011506,2]
[323396138,1713970254210,-500.0,0.00011506,2]
[323396139,1713970254220,-500.0,0.00011506,2]
[323396140,1713970254229,-500.0,0.00011506,2]
[323396141,1713970254239,-1700.75,0.00011506,2]
[323396142,1713970254248,-500.0,0.00011506,2]
[323396143,1713970254258,-7405.0,0.00011572,2]
[323396144,1713970254267,-795.3189297,0.00011579,2]
[323396145,1713970254276,-181.9451404,0.00011587,2]
[323396146,1713970254285,-2100.0,0.000117,4]
[323396147,1713970254294,-446.3,0.00011766,2]
[323396148,1713970254304,-500.0,0.00011779,2]
[323396149,1713970254313,-500.0,0.00011779,2]
[323396150,1713970254322,-500.0,0.00011779,2]
[323396151,1713970254335,-500.0,0.00011779,2]
[323396152,1713970254344,-500.0,0.00011779,2]
[323396153,1713970254353,-500.0,0.00011779,2]
[323396154,1713970254363,-309.90720311,0.00011779,2]
[323396155,1713970254373,-500.0,0.00011779,2]
[323396156,1713970254382,-500.0,0.00011779,2]
[323396157,1713970254392,-500.0,0.00011779,2]
[323396158,1713970254401,-500.0,0.00011779,2]
[323396159,1713970254411,-500.0,0.00011779,2]
[323396160,1713970254421,-500.0,0.00011779,2]
[323396161,1713970254430,-500.0,0.00011779,2]
[323396162,1713970254439,-500.0,0.00011779,2]
[323396163,1713970254450,-500.0,0.00011779,2]
[323396164,1713970254460,-500.0,0.00011779,2]
[323396165,1713970254469,-221.68,0.00011779,2]
[323396166,1713970254478,-500.0,0.00011779,2]
[323396167,1713970254488,-624.28,0.00011779,2]
[323396168,1713970254498,-500.0,0.00011779,2]
[323396169,1713970254508,-609.25,0.00011779,2]
[323396170,1713970254517,-500.0,0.00011779,2]
[323396171,1713970254526,-180.38,0.00011779,2]
[323396172,1713970254535,-887.26,0.00011779,2]
[323396173,1713970254546,-422.0,0.00011779,2]
[323396174,1713970254556,-469.12,0.00011779,2]
[323396175,1713970254565,-334.2,0.00011779,2]
[323396176,1713970254576,-500.0,0.00011779,2]
[323396177,1713970254588,-500.0,0.00011779,2]
[323396178,1713970254597,-5483.06,0.00011779,2]
[323396179,1713970254609,-500.0,0.00011779,2]
[323396180,1713970254619,-501.51023486,0.00011779,2]
[323396181,1713970254628,-643.6,0.00011779,2]
[323396182,1713970254639,-500.0,0.00011779,2]
[323396183,1713970254649,-4659.66,0.00011779,2]
[323396184,1713970254658,-17236.93,0.00011779,2]
[323396185,1713970254669,-481.54,0.00011779,2]
[323396186,1713970254679,-500.0,0.00011779,2]
[323396187,1713970254691,-300.64,0.00011779,2]
[323396188,1713970254700,-10100.07,0.00011779,2]
[323396189,1713970254711,-1841.62,0.00011779,2]
[323396190,1713970254720,-500.0,0.00011779,2]
[323396191,1713970254730,-500.0,0.00011779,2]
[323396192,1713970254740,-500.0,0.00011779,2]
[323396193,1713970254749,-500.0,0.00011779,2]
[323396194,1713970254758,-500.0,0.00011779,2]
[323396195,1713970254768,-500.0,0.00011779,2]
[323396196,1713970254777,-500.0,0.00011779,2]
[323396197,1713970254787,-6837.62,0.00011779,2]
[323396198,1713970254796,-500.0,0.00011779,2]
[323396199,1713970254806,-500.0,0.00011779,2]
[323396200,1713970254815,-500.0,0.00011779,2]
[323396201,1713970254824,-270.72,0.00011779,2]
[323396202,1713970254837,-3289.85,0.00011779,2]
[323396203,1713970254846,-500.0,0.00011779,2]
[323396204,1713970254856,-1335.0,0.00011779,2]
[323396205,1713970254865,-500.0,0.00011779,2]
[323396206,1713970254874,-500.0,0.00011779,2]
[323396207,1713970254883,-5350.48,0.00011779,2]
[323396208,1713970254892,-500.0,0.00011779,2]
[323396209,1713970254901,-197.38,0.00011779,2]
[323396210,1713970254910,-5070.88,0.00011779,2]
[323396211,1713970254920,-500.0,0.00011779,2]
[323396212,1713970254929,-1275.26,0.00011779,2]
[323396213,1713970254938,-500.0,0.00011779,2]
[323396214,1713970254948,-1088.69,0.00011779,2]
[323396215,1713970254957,-555.76,0.00011779,2]
[323396216,1713970254970,-2426.84,0.00011779,2]
[323396217,1713970254980,-10262.47,0.00011779,2]
[323396218,1713970254992,-500.0,0.00011779,2]
[323396219,1713970255004,-500.0,0.00011779,2]
[323396220,1713970255018,-8907.32,0.00011779,2]
[323396221,1713970255032,-3096.88,0.00011779,2]
[323396222,1713970255043,-356.12,0.00011779,2]
[323396223,1713970255056,-500.0,0.00011779,2]
[323396224,1713970255068,-1123.89,0.00011779,2]
[323396225,1713970255081,-3686.15,0.00011779,2]
[323396226,1713970255094,-344.96,0.00011779,2]
[323396227,1713970255106,-292.64,0.00011779,2]
[323396228,1713970255119,-5537.62,0.00011779,2]
[323396229,1713970255133,-500.0,0.00011779,2]
[323396230,1713970255144,-6873.81,0.00011779,2]
[323396231,1713970255156,-806.78,0.00011779,2]
[323396232,1713970255168,-234.02,0.00011779,2]
[323396233,1713970255180,-3214.32,0.00011779,2]
[323396234,1713970255193,-500.0,0.00011779,2]
[323396235,1713970255206,-500.0,0.00011779,2]
[323396236,1713970255219,-2529.3,0.00011779,2]
[323396237,1713970255230,-3516.21,0.00011779,2]
[323396238,1713970255241,-500.0,0.00011779,2]
[323396239,1713970255256,-270.04,0.00011779,2]
[323396240,1713970255268,-303.44,0.00011779,2]
[323396241,1713970255282,-512.90386891,0.00011779,2]
[323396242,1713970255293,-472.4,0.00011779,2]
[323396243,1713970255305,-695.87,0.00011779,2]
[323396244,1713970255317,-500.0,0.00011779,2]
[323396245,1713970255329,-500.0,0.00011779,2]
[323396246,1713970255344,-500.0,0.00011779,2]
[323396247,1713970255356,-2030.83,0.00011779,2]
[323396248,1713970255370,-5402.83,0.00011779,2]
[323396249,1713970255382,-384.86,0.00011779,2]
[323396250,1713970255396,-500.0,0.00011779,2]
[323396251,1713970255409,-741.32,0.00011779,2]
[323396252,1713970255420,-500.0,0.00011779,2]
[323396253,1713970255431,-500.0,0.00011779,2]
[323396254,1713970255441,-500.0,0.00011779,2]
[323396255,1713970255452,-500.0,0.00011779,2]
[323396256,1713970255464,-500.0,0.00011779,2]
[323396257,1713970255476,-1204.57,0.00011779,2]
[323396258,1713970255487,-354.22,0.00011779,2]
[323396259,1713970255501,-10381.96,0.00011779,2]
[323396260,1713970255512,-500.0,0.00011779,2]
[323396261,1713970255523,-411.7,0.00011779,2]
[323396262,1713970255533,-12510.82,0.00011779,2]
[323396263,1713970255545,-500.0,0.0001178,2]
[323396264,1713970255556,-500.0,0.0001178,2]
[323396265,1713970255567,-500.0,0.0001178,2]
[323396266,1713970255578,-211.86,0.0001178,2]
[323396267,1713970255591,-500.0,0.0001178,2]
[323396268,1713970255602,-500.0,0.0001178,2]
[323396269,1713970255614,-500.0,0.0001178,2]
[323396270,1713970255625,-500.0,0.0001178,2]
[323396271,1713970255636,-500.0,0.0001178,2]
[323396272,1713970255648,-500.0,0.0001178,2]
[323396273,1713970255660,-500.0,0.0001178,2]
[323396274,1713970255670,-500.0,0.0001178,2]
[323396275,1713970255682,-500.0,0.0001178,2]
[323396276,1713970255693,-500.0,0.0001178,2]
[323396277,1713970255704,-500.0,0.0001178,2]
[323396278,1713970255715,-1000.0,0.0001178,2]
[323396279,1713970255726,-500.0,0.0001178,2]
[323396280,1713970255737,-500.0,0.0001178,2]
[323396281,1713970255749,-500.0,0.0001178,2]
[323396282,1713970255760,-500.0,0.0001178,2]
[323396283,1713970255771,-500.0,0.0001178,2]
[323396284,1713970255782,-500.0,0.0001178,2]
[323396285,1713970255793,-1063.65,0.0001178,2]
[323396286,1713970255804,-439.16,0.0001178,2]
[323396287,1713970255816,-500.0,0.0001178,2]
[323396288,1713970255826,-529.12,0.0001178,2]
[323396289,1713970255839,-1000.05,0.0001178,2]
[323396290,1713970255851,-500.0,0.0001178,2]
[323396291,1713970255862,-500.0,0.0001178,2]
[323396292,1713970255873,-500.0,0.0001178,2]
[323396293,1713970255885,-500.0,0.0001178,2]
[323396294,1713970255896,-500.0,0.0001178,2]
[323396295,1713970255907,-593.47,0.0001178,2]
[323396296,1713970255918,-500.0,0.0001178,2]
[323396297,1713970255929,-749.94,0.0001178,2]
[323396298,1713970255946,-500.0,0.0001178,2]
[323396299,1713970255957,-500.0,0.0001178,2]
[323396300,1713970255972,-215.56,0.0001178,2]
[323396301,1713970255983,-944.05,0.0001178,2]
[323396302,1713970255995,-973.78,0.0001178,2]
[323396303,1713970256006,-500.0,0.0001178,2]
[323396304,1713970256018,-500.0,0.0001178,2]
[323396305,1713970256029,-500.0,0.0001178,2]
[323396306,1713970256041,-1229.41,0.0001178,2]
[323396307,1713970256052,-460.6,0.0001178,2]
[323396308,1713970256064,-2625.87,0.0001178,2]
[323396309,1713970256075,-820.4,0.0001178,2]
[323396310,1713970256086,-500.0,0.0001178,2]
[323396311,1713970256097,-551.8,0.0001178,2]
[323396312,1713970256109,-538.54,0.0001178,2]
[323396313,1713970256119,-500.0,0.0001178,2]
[323396314,1713970256131,-500.0,0.0001178,2]
[323396315,1713970256142,-500.0,0.0001178,2]
[323396316,1713970256153,-525.1,0.0001178,2]
[323396317,1713970256164,-500.0,0.0001178,2]
[323396318,1713970256175,-500.0,0.0001178,2]
[323396319,1713970256187,-500.0,0.0001178,2]
[323396320,1713970256198,-500.0,0.0001178,2]
[323396321,1713970256209,-977.3,0.0001178,2]
[323396322,1713970256220,-500.0,0.0001178,2]
[323396323,1713970256231,-500.0,0.0001178,2]
[323396324,1713970256244,-500.0,0.0001178,2]
[323396325,1713970256255,-500.0,0.0001178,2]
[323396326,1713970256266,-500.0,0.0001178,2]
[323396327,1713970256277,-500.0,0.0001178,2]
[323396328,1713970256288,-500.0,0.0001178,2]
[323396329,1713970256299,-500.0,0.0001178,2]
[323396330,1713970256311,-500.0,0.0001178,2]
[323396331,1713970256322,-500.0,0.0001178,2]
[323396332,1713970256335,-382.56,0.0001178,2]
[323396333,1713970256347,-500.0,0.0001178,2]
[323396334,1713970256360,-500.0,0.0001178,2]
[323396335,1713970256372,-500.0,0.0001178,2]
[323396336,1713970256383,-500.0,0.0001178,2]
[323396337,1713970256394,-2833.7,0.0001178,2]
[323396338,1713970256406,-500.0,0.0001178,2]
[323396339,1713970256417,-468.14,0.0001178,2]
[323396340,1713970256429,-500.0,0.0001178,2]
[323396341,1713970256440,-636.22100924,0.0001178,2]
[323396342,1713970256452,-592.24,0.0001178,2]
[323396343,1713970256463,-194.58,0.0001178,2]
[323396344,1713970256474,-500.0,0.0001178,2]
[323396345,1713970256485,-500.0,0.0001178,2]
[323396346,1713970256497,-500.0,0.0001178,2]
[323396347,1713970256508,-500.0,0.0001178,2]
[323396348,1713970256519,-500.0,0.0001178,2]
[323396349,1713970256530,-1027.48,0.0001178,2]
[323396350,1713970256541,-500.0,0.0001178,2]
[323396351,1713970256552,-500.0,0.0001178,2]
[323396352,1713970256563,-500.0,0.0001178,2]
[323396353,1713970256574,-500.0,0.0001178,2]
[323396354,1713970256588,-500.0,0.0001178,2]
[323396355,1713970256600,-500.0,0.0001178,2]
[323396356,1713970256611,-181.84,0.0001178,2]
[323396357,1713970256622,-693.52,0.0001178,2]
[323396358,1713970256634,-500.0,0.0001178,2]
[323396359,1713970256644,-500.0,0.0001178,2]
[323396360,1713970256656,-571.31,0.0001178,2]
[323396361,1713970256667,-500.0,0.0001178,2]
[323396362,1713970256678,-445.1,0.0001178,2]
[323396363,1713970256690,-774.8,0.0001178,2]
[323396364,1713970256701,-1067.92,0.0001178,2]
[323396365,1713970256712,-183.3,0.0001178,2]
[323396366,1713970256723,-500.0,0.0001178,2]
[323396367,1713970256735,-500.0,0.0001178,2]
[323396368,1713970256747,-500.0,0.0001178,2]
[323396369,1713970256758,-572.63,0.0001178,2]
[323396370,1713970256770,-500.0,0.0001178,2]
[323396371,1713970256782,-500.0,0.0001178,2]
[323396372,1713970256794,-500.0,0.0001178,2]
[323396373,1713970256805,-1470.58,0.0001178,2]
[323396374,1713970256816,-500.0,0.0001178,2]
[323396375,1713970256827,-573.48,0.0001178,2]
[323396376,1713970256841,-500.0,0.0001178,2]
[323396377,1713970256852,-500.0,0.0001178,2]
[323396378,1713970256863,-500.0,0.0001178,2]
[323396379,1713970256875,-1445.39,0.0001178,2]
[323396380,1713970256885,-618.12,0.0001178,2]
[323396381,1713970256896,-882.27,0.0001178,2]
[323396382,1713970256908,-613.15,0.0001178,2]
[323396383,1713970256919,-500.0,0.0001178,2]
[323396384,1713970256930,-500.0,0.0001178,2]
[323396385,1713970256941,-500.0,0.0001178,2]
[323396386,1713970256953,-500.0,0.0001178,2]
[323396387,1713970256968,-500.0,0.0001178,2]
[323396388,1713970256979,-2307.06,0.0001178,2]
[323396389,1713970256991,-500.0,0.0001178,2]
[323396390,1713970257003,-500.0,0.0001178,2]
[323396391,1713970257016,-564.59,0.0001178,2]
[323396392,1713970257027,-3243.17,0.0001178,2]
[323396393,1713970257039,-500.0,0.0001178,2]
[323396394,1713970257053,-862.54,0.0001178,2]
[323396395,1713970257065,-500.0,0.0001178,2]
[323396396,1713970257076,-1387.82,0.0001178,2]
[323396397,1713970257091,-500.0,0.0001178,2]